fUSD/lending_fUSD_20260422
["ID","MTS","AMOUNT","RATE_DAILY","PERIOD"]
[420960728,1776809438004,-150.0,0.00010091,2]
[420960729,1776809438014,-150.0,0.00010099,2]
[420960730,1776809438023,-3137.1,0.000101,2]
[420960731,1776809438033,-2000.0,0.000101,2]
[420960732,1776809438043,-168.85,0.00010113,2]
[420960733,1776809438052,-150.0,0.00010151,2]
[420960734,1776809438062,-150.0,0.00010151,2]
[420960735,1776809438072,-150.0,0.00010151,2]
[420960736,1776809438081,-150.0,0.00010151,2]
[420960737,1776809438090,-218.7803074,0.00010173,2]
[420960738,1776809438100,-500.0,0.00010173,2]
[420960739,1776809438110,-500.0,0.00010173,2]
[420960740,1776809438120,-500.0,0.00010173,2]
[420960741,1776809438130,-14221.68288088,0.00010174,2]
[420960742,1776809438172,-500.0,0.00010174,2]
[420960743,1776809438385,-1383.16954307,0.00010174,2]
[420960744,1776809438397,-2000.0,0.00010174,2]
[420960749,1776809441450,-894.98466913,0.00010174,2]
[420960750,1776809441466,-3952.48449072,0.00010174,2]
[420960751,1776809441476,-3307.7111306,0.00010174,2]
[420960752,1776809441485,-164.3203853,0.00010174,2]
[420960753,1776809441494,-24945.35383815,0.00010179,2]
[420960754,1776809441504,-200.0,0.0001018,2]
[420960755,1776809441513,-200.0,0.0001018,2]
[420960756,1776809441522,-721.12765535,0.0001018,2]
[420960757,1776809441531,-500.0,0.0001018,2]
[420960758,1776809441540,-500.0,0.0001018,2]
[420960759,1776809441550,-500.0,0.0001018,2]
[420960760,1776809441559,-500.0,0.0001018,2]
[420960761,1776809441569,-423.102813,0.0001018,2]
[420960762,1776809441578,-743.50770149,0.0001018,2]
[420960763,1776809441588,-209.40437684,0.0001018,2]
[420960764,1776809441597,-552.3873477,0.0001018,2]
[420960765,1776809441606,-181.08010149,0.0001018,2]
[420960766,1776809441616,-151.0,0.0001018,2]
[420960767,1776809441625,-151.0,0.0001018,2]
[420960768,1776809441634,-884.90468557,0.0001018,2]
[420960769,1776809441643,-151.0,0.0001018,2]
[420960770,1776809441652,-151.0,0.0001018,2]
[420960771,1776809441662,-160.95570324,0.0001018,2]
[420960772,1776809441672,-3533.131,0.00010184,2]
[420960773,1776809441681,-232.397,0.00010184,2]
[420960774,1776809441694,-500.0,0.00010185,2]
[420960775,1776809441704,-500.0,0.00010185,2]
[420960776,1776809441713,-193.92010682,0.00010185,2]
[420960777,1776809441728,-500.0,0.00010185,2]
[420960778,1776809441737,-500.0,0.00010185,2]
[420960779,1776809441747,-269.65278114,0.00010185,2]
[420960780,1776809441756,-500.0,0.00010185,2]
[420960781,1776809441765,-500.0,0.00010185,2]
[420960782,1776809441774,-500.0,0.00010185,2]
[420960783,1776809441783,-500.0,0.00010185,2]
[420960784,1776809441792,-500.0,0.00010185,2]
[420960785,1776809441801,-500.0,0.00010185,2]
[420960786,1776809441810,-500.0,0.00010185,2]
[420960787,1776809441819,-500.0,0.00010185,2]
[420960788,1776809441828,-500.0,0.00010185,2]
[420960789,1776809441838,-500.0,0.00010185,2]
[420960790,1776809441847,-500.0,0.00010185,2]
[420960791,1776809441856,-500.0,0.00010185,2]
[420960792,1776809441869,-500.0,0.00010185,2]
[420960793,1776809441879,-500.0,0.00010185,2]
[420960794,1776809441888,-500.0,0.00010185,2]
[420960795,1776809441897,-500.0,0.00010185,2]
[420960796,1776809441907,-500.0,0.00010185,2]
[420960797,1776809441916,-500.0,0.00010185,2]
[420960798,1776809441925,-500.0,0.00010185,2]
[420960799,1776809441934,-500.0,0.00010185,2]
[420960800,1776809441943,-500.0,0.00010185,2]
[420960801,1776809441952,-350.0,0.00010185,2]
[420960802,1776809441962,-221.44862068,0.00010185,2]
[420960803,1776809441971,-456780.70931451,0.00010186,2]
[420960822,1776809443203,-426.5,0.00010186,2]
[420960829,1776809445765,-4439.0000001,0.00010186,2]
[420960830,1776809445873,-412.18422973,0.00010186,2]
[420960831,1776809445931,-1919.97830001,0.00010186,2]
[420960832,1776809446046,-24291.88822399,0.00010186,2]
[420960833,1776809446151,-1759.0,0.00010186,2]
[420962162,1776810633030,-1274.08,8.669e-05,2]
[420962163,1776810633045,-300.0,9.048e-05,2]
[420962164,1776810633060,-1200.0,9.048e-05,2]
[420962165,1776810633075,-681.57,9.049e-05,2]
[420962166,1776810633089,-191.20921413,9.049e-05,2]
[420962167,1776810633103,-150.0,9.049e-05,2]
[420962168,1776810633117,-150.0,9.049e-05,2]
[420962169,1776810633130,-150.0,9.049e-05,2]
[420962170,1776810633144,-150.0,9.049e-05,2]
[420962171,1776810633158,-150.0,9.049e-05,2]
[420962172,1776810633169,-150.7678493,9.049e-05,2]
[420962173,1776810633181,-150.0,9.049e-05,2]
[420962174,1776810633194,-151.03186045,9.049e-05,2]
[420962175,1776810633208,-150.0,9.049e-05,2]
[420962176,1776810633222,-150.0,9.049e-05,2]
[420962177,1776810633236,-150.0,9.049e-05,2]
[420962178,1776810633251,-201.51350491,9.049e-05,2]
[420962179,1776810633265,-150.0,9.049e-05,2]
[420962180,1776810633280,-2552.98,9.107e-05,2]
[420962181,1776810633299,-150.0,9.116e-05,2]
[420962182,1776810633311,-150.0,9.121e-05,2]
[420962183,1776810633323,-150.0,9.133e-05,2]
[420962184,1776810633335,-150.0,9.133e-05,2]
[420962185,1776810633350,-2000.0,9.146e-05,2]
[420962186,1776810633362,-150.0,9.15e-05,2]
[420962187,1776810633376,-150.0,9.183e-05,2]
[420962188,1776810633390,-150.0,9.193e-05,2]
[420962189,1776810633407,-150.0,9.217e-05,2]
[420962190,1776810633420,-150.0,9.217e-05,2]
[420962191,1776810633437,-150.0,9.25e-05,2]
[420962192,1776810633493,-150.0,9.25e-05,2]
[420962193,1776810633508,-500.0,9.257e-05,2]
[420962194,1776810633522,-150.0,9.265e-05,2]
[420962195,1776810633537,-150.0,9.301e-05,2]
[420962196,1776810633551,-150.0,9.301e-05,2]
[420962197,1776810633566,-150.0,9.317e-05,2]
[420962198,1776810633581,-681.57,9.323e-05,2]
[420962199,1776810633595,-150.0,9.337e-05,2]
[420962200,1776810633611,-150.0,9.351e-05,2]
[420962201,1776810633625,-200.0,9.362e-05,2]
[420962202,1776810633639,-150.0,9.384e-05,2]
[420962203,1776810633652,-150.0,9.384e-05,2]
[420962204,1776810633668,-150.0,9.384e-05,2]
[420962205,1776810633682,-150.0,9.408e-05,2]
[420962206,1776810633695,-150.0,9.452e-05,2]
[420962207,1776810633709,-150.0,9.452e-05,2]
[420962208,1776810633723,-150.0,9.468e-05,2]
[420962209,1776810633737,-150.0,9.468e-05,2]
[420962210,1776810633750,-150.0,9.48e-05,2]
[420962211,1776810633765,-150.0,9.48e-05,2]
[420962212,1776810633780,-150.0,9.519e-05,2]
[420962213,1776810633793,-250.0,9.519e-05,2]
[420962214,1776810633806,-150.0,9.552e-05,2]
[420962215,1776810633820,-150.0,9.552e-05,2]
[420962216,1776810633834,-150.0,9.552e-05,2]
[420962217,1776810633847,-150.0,9.552e-05,2]
[420962218,1776810633860,-620.51982458,9.552e-05,2]
[420962219,1776810633878,-247.14,9.58e-05,2]
[420962220,1776810633894,-150.0,9.586e-05,2]
[420962221,1776810633909,-681.57,9.597e-05,2]
[420962222,1776810633926,-150.0,9.624e-05,2]
[420962223,1776810633941,-150.0,9.636e-05,2]
[420962224,1776810633956,-150.0,9.636e-05,2]
[420962225,1776810633972,-150.0,9.653e-05,2]
[420962226,1776810633987,-150.0,9.653e-05,2]
[420962227,1776810634003,-150.0,9.696e-05,2]
[420962228,1776810634018,-150.0,9.72e-05,2]
[420962229,1776810634033,-150.0,9.72e-05,2]
[420962230,1776810634047,-150.0,9.72e-05,2]
[420962231,1776810634061,-150.0,9.753e-05,2]
[420962232,1776810634076,-150.0,9.768e-05,2]
[420962233,1776810634090,-150.0,9.787e-05,2]
[420962234,1776810634103,-1500.0,9.8e-05,3]
[420962235,1776810634117,-894.0,9.803e-05,2]
[420962236,1776810634131,-150.0,9.803e-05,2]
[420962237,1776810634146,-150.0,9.803e-05,2]
[420962238,1776810634160,-162.73439341,9.808e-05,2]
[420962239,1776810634173,-478.67335408,9.828e-05,2]
[420962240,1776810634187,-150.0,9.839e-05,2]
[420962241,1776810634200,-150.0,9.854e-05,2]
[420962242,1776810634213,-150.0,9.854e-05,2]
[420962243,1776810634226,-681.57,9.871e-05,2]
[420962244,1776810634240,-894.0,9.875e-05,2]
[420962245,1776810634253,-150.0,9.887e-05,2]
[420962246,1776810634266,-150.0,9.887e-05,2]
[420962247,1776810634279,-3000.0,9.9e-05,3]
[420962248,1776810634292,-894.0,9.9e-05,2]
[420962249,1776810634305,-2000.0,9.9e-05,2]
[420962250,1776810634319,-150.0,9.911e-05,2]
[420962251,1776810634331,-150.0,9.921e-05,2]
[420962252,1776810634344,-578.20924308,9.953e-05,2]
[420962253,1776810634357,-420.0,9.953e-05,2]
[420962254,1776810634369,-1143.0,9.953e-05,2]
[420962255,1776810634382,-150.0,9.954e-05,2]
[420962256,1776810634396,-150.0,9.971e-05,2]
[420962257,1776810634409,-150.0,9.971e-05,2]
[420962258,1776810634422,-20424.17294443,9.972e-05,2]
[420962259,1776810634440,-2368.72,9.972e-05,2]
[420962260,1776810634569,-1089.0,9.972e-05,2]
[420962261,1776810634586,-765.24209193,9.972e-05,2]
[420962262,1776810634760,-1668.0,9.972e-05,2]
[420962263,1776810634935,-885.56582339,9.972e-05,2]
[420962264,1776810634951,-367.55852767,9.972e-05,2]
[420962301,1776810639332,-468.12794408,9.972e-05,2]
[420962302,1776810639512,-4757.0,9.972e-05,2]
[420962303,1776810639525,-43662.5189685,9.972e-05,2]
[420962304,1776810639535,-21779.2745,9.973e-05,2]
[420962305,1776810639544,-976.44,9.979e-05,2]
[420962306,1776810639555,-7581.76653155,9.979e-05,2]
[420962307,1776810639567,-4460.01,9.979e-05,2]
[420962308,1776810639579,-4100.23079012,9.979e-05,2]
[420962314,1776810640509,-29277.51917833,9.979e-05,2]
[420962315,1776810640519,-5000.0,9.979e-05,2]
[420962316,1776810640529,-2500.0,9.979e-05,2]
[420962317,1776810640539,-191.20921412,9.979e-05,2]
[420962318,1776810640548,-344.60174005,9.98e-05,2]
[420962319,1776810640558,-9552.16786547,9.98e-05,2]
[420962320,1776810640568,-174.61919141,9.98e-05,2]
[420962321,1776810640577,-209.40437684,9.98e-05,2]
[420962322,1776810640588,-150.0,9.983e-05,2]
[420962323,1776810640597,-515.34503748,9.986e-05,2]
[420962324,1776810640607,-160.0,9.986e-05,2]
[420962325,1776810640617,-373.988034,9.986e-05,2]
[420962326,1776810640626,-587.976069,9.986e-05,2]
[420962327,1776810640637,-150.0,9.988e-05,2]
[420962328,1776810640647,-894.0,9.996e-05,2]
[420962329,1776810640657,-989.06062998,0.0001,5]
[420962330,1776810640667,-267.35000283,0.0001,2]
[420962331,1776810640676,-518.01977581,0.0001,2]
[420962332,1776810640686,-832.32608102,0.0001,2]
[420962333,1776810640696,-4500.0,0.0001,3]
[420962334,1776810640706,-2742.0,0.0001,2]
[420962335,1776810640717,-500.0,0.00010034,2]
[420962336,1776810640727,-500.0,0.00010034,2]
[420962337,1776810640736,-500.0,0.00010034,2]
[420962338,1776810640745,-500.0,0.00010034,2]
[420962339,1776810640755,-500.0,0.00010034,2]
[420962340,1776810640765,-500.0,0.00010034,2]
[420962341,1776810640775,-500.0,0.00010034,2]
[420962342,1776810640784,-500.0,0.00010034,2]
[420962343,1776810640794,-500.0,0.00010034,2]
[420962344,1776810640804,-500.0,0.00010034,2]
[420962345,1776810640813,-500.0,0.00010034,2]
[420962346,1776810640823,-500.0,0.00010034,2]
[420962347,1776810640833,-500.0,0.00010034,2]
[420962348,1776810640843,-500.0,0.00010034,2]
[420962349,1776810640852,-262.15726636,0.00010034,2]
[420962350,1776810640862,-9905.5980765,0.00010035,2]
[420962351,1776810640872,-227.22125277,0.00010055,2]
[420962352,1776810640882,-150.0,0.00010055,2]
[420962353,1776810640891,-150.0,0.00010055,2]
[420962354,1776810640902,-150.0,0.00010055,2]
[420962355,1776810640911,-258.8832,0.00010055,2]
[420962356,1776810640921,-150.0,0.00010055,2]
[420962357,1776810640931,-150.0,0.00010055,2]
[420962358,1776810640941,-200.0,0.00010073,2]
[420962360,1776810640951,-1428.38747117,0.00010073,2]
[420962361,1776810640961,-721.12765535,0.00010073,2]
[420962362,1776810640971,-200.0,0.00010073,2]
[420962363,1776810640980,-2000.0,0.00010073,2]
[420962364,1776810640990,-226.34794787,0.00010073,2]
[420962365,1776810641014,-1773.65205213,0.00010073,2]
[420962366,1776810641023,-2000.0,0.00010073,2]
[420962367,1776810641033,-2000.0,0.00010073,2]
[420962368,1776810641043,-738.34794787,0.00010073,2]
[420962369,1776810641059,-596.298,0.00010073,2]
[420962395,1776810644163,-500.0,0.00010034,2]
[420962396,1776810644172,-665.35405213,0.00010073,2]
[420962397,1776810644182,-1478.2447095,0.00010073,2]
[420962398,1776810644194,-521.7552905,0.00010073,2]
[420962399,1776810644203,-151.0,0.00010073,2]
[420962400,1776810644212,-1000.0,0.00010073,2]
[420962401,1776810644221,-743.50770149,0.00010073,2]
[420962402,1776810644231,-500.0,0.00010073,2]
[420962403,1776810644242,-500.0,0.00010073,2]
[420962404,1776810644251,-500.0,0.00010073,2]
[420962405,1776810644260,-500.0,0.00010073,2]
[420962406,1776810644270,-319.73700801,0.00010073,2]
[420962407,1776810644281,-61.53163569,0.00010073,2]
[420962408,1776810644290,-501.87926703,0.00010073,2]
[420962409,1776810644300,-3542.707,0.00010073,2]
[420962410,1776810644309,-230.5,0.00010073,2]
[420962411,1776810644318,-151.0,0.00010076,2]
[420962412,1776810644328,-1093.91752428,0.00010078,3]
[420962413,1776810644337,-1093.91752428,0.00010078,3]
[420962414,1776810644347,-1093.91752428,0.00010078,3]
[420962415,1776810644356,-1093.91752428,0.00010078,3]
[420962416,1776810644366,-2000.0,0.00010086,2]
[420962417,1776810644376,-10272.10520533,0.0001009,2]
[420962418,1776810644385,-10304.24068084,0.00010112,2]
[420962419,1776810644394,-350.0,0.00010129,2]
[420962420,1776810644403,-681.57,0.00010145,2]
[420962421,1776810644412,-10652.17309792,0.00010145,2]
[420962422,1776810644421,-265.86882315,0.00010173,2]
[420962423,1776810644430,-500.0,0.00010173,2]
[420962424,1776810644439,-500.0,0.00010173,2]
[420962425,1776810644449,-500.0,0.00010173,2]
[420962426,1776810644458,-1000.0,0.00010181,2]
[420962427,1776810644469,-3853.8962783,0.00010186,2]
[420962428,1776810644478,-4921.0458107,0.00010186,2]
[420962429,1776810644487,-200.0,0.00010186,2]
[420962430,1776810644496,-500.0,0.00010186,2]
[420962431,1776810644506,-234.0,0.00010186,3]
[420962432,1776810644515,-156.0,0.00010186,3]
[420962433,1776810644525,-200.0,0.00010186,2]
[420962434,1776810644534,-155.0,0.00010186,3]
[420962435,1776810644543,-151.0,0.00010187,2]
[420962436,1776810644552,-1093.91752428,0.00010189,3]
[420962437,1776810644562,-500.0,0.00010189,2]
[420962438,1776810644571,-546.554557,0.00010189,2]
[420962439,1776810644580,-379.49640183,0.00010189,2]
[420962440,1776810644589,-314.63655639,0.00010189,2]
[420962441,1776810644599,-500.0,0.00010189,2]
[420962442,1776810644608,-279.28952769,0.00010189,2]
[420962443,1776810644617,-85024.91753673,0.0001019,2]
[420962444,1776810644629,-759.75449005,0.0001019,2]
[420962447,1776810645966,-271.81408,0.00010173,2]
[420962448,1776810645975,-2.15478294,0.0001019,2]
[420962449,1776810646020,-2187.48845603,0.0001019,2]
[420962450,1776810646075,-61327.35743572,0.0001019,2]
[420962451,1776810646237,-257.72629871,0.0001019,2]
[420962452,1776810646293,-26537.75759973,0.0001019,2]
[420962453,1776810646304,-3700.0,0.0001019,2]
[420962457,1776810738246,205.88,0.000162,120]
[420962464,1776811832069,-160.17,8.829e-05,2]
[420962465,1776811832079,-150.0,9.074e-05,2]
[420962466,1776811832089,-150.0,9.074e-05,2]
[420962467,1776811832098,-108.96169042,9.074e-05,2]
[420962468,1776811832110,-41.03830958,9.074e-05,2]
[420962469,1776811832119,-150.0,9.074e-05,2]
[420962470,1776811832129,-150.0,9.106e-05,2]
[420962471,1776811832139,-200.0,9.118e-05,2]
[420962472,1776811832148,-150.0,9.139e-05,2]
[420962473,1776811832157,-150.0,9.172e-05,2]
[420962474,1776811832167,-150.0,9.204e-05,2]
[420962475,1776811832176,-150.0,9.237e-05,2]
[420962476,1776811832185,-191.20921413,9.269e-05,2]
[420962477,1776811832194,-150.0,9.269e-05,2]
[420962478,1776811832203,-150.0,9.302e-05,2]
[420962479,1776811832212,-150.0,9.334e-05,2]
[420962480,1776811832222,-150.0,9.367e-05,2]
[420962481,1776811832232,-150.0,9.399e-05,2]
[420962482,1776811832242,-168.41,9.415e-05,2]
[420962483,1776811832251,-26.97578355,9.432e-05,2]
[420962484,1776811832271,-123.02421645,9.432e-05,2]
[420962485,1776811832280,-150.0,9.464e-05,2]
[420962486,1776811832291,-641.29384471,9.481e-05,2]
[420962487,1776811832305,-693.87615529,9.481e-05,2]
[420962488,1776811832314,-100.44554687,9.497e-05,2]
[420962489,1776811832326,-49.55445313,9.497e-05,2]
[420962490,1776811832336,-150.0,9.529e-05,2]
[420962491,1776811832346,-150.0,9.562e-05,2]
[420962492,1776811832355,-236.95,9.574e-05,2]
[420962493,1776811832365,-150.0,9.594e-05,2]
[420962494,1776811832375,-150.0,9.627e-05,2]
[420962495,1776811832385,-150.0,9.659e-05,2]
[420962496,1776811832395,-1200.0,9.659e-05,2]
[420962498,1776811832404,-150.0,9.659e-05,2]
[420962500,1776811832414,-150.0,9.692e-05,2]
[420962502,1776811832424,-150.0,9.724e-05,2]
[420962504,1776811832433,-150.0,9.757e-05,2]
[420962505,1776811832442,-150.0,9.789e-05,2]
[420962506,1776811832451,-1000.0,9.8e-05,3]
[420962507,1776811832460,-168.41,9.804e-05,2]
[420962508,1776811832469,-150.0,9.822e-05,2]
[420962509,1776811832478,-150.0,9.855e-05,2]
[420962510,1776811832487,-150.0,9.887e-05,2]
[420962511,1776811832496,-2100.0,9.9e-05,3]
[420962512,1776811832506,-150.0,9.92e-05,2]
[420962513,1776811832515,-160.17,9.933e-05,2]
[420962514,1776811832525,-236.2458,9.934e-05,2]
[420962515,1776811832534,-191.20921412,9.943e-05,2]
[420962516,1776811832544,-2207.8724161,9.943e-05,2]
[420962517,1776811832555,-15171.78584012,9.943e-05,2]
[420962518,1776811832570,-849532.96084378,9.943e-05,2]
[420962519,1776811832580,-805.0,9.951e-05,2]
[420962520,1776811832589,-150.0,9.952e-05,2]
[420962521,1776811832599,-2000.0,9.979e-05,2]
[420962522,1776811832608,-150.0,9.985e-05,2]
[420962523,1776811832618,-3057.33182765,9.99e-05,2]
[420962524,1776811832627,-19707.0,0.0001,2]
[420962525,1776811832636,-5000.0,0.0001,2]
[420962526,1776811832646,-3200.0,0.0001,3]
[420962527,1776811832655,-2500.0,0.0001,2]
[420962528,1776811832664,-150.0,0.00010017,2]
[420962529,1776811832673,-9552.16786547,0.00010037,2]
[420962530,1776811832682,-209.40437684,0.00010037,2]
[420962531,1776811832691,-181.08010149,0.00010037,2]
[420962532,1776811832701,-6207.49010798,0.00010047,2]
[420962533,1776811832710,-150.0,0.0001005,2]
[420962534,1776811832720,-730.07213644,0.00010053,2]
[420962535,1776811832729,-183.38,0.00010063,2]
[420962536,1776811832738,-500.0,0.00010073,2]
[420962537,1776811832747,-500.0,0.00010073,2]
[420962538,1776811832756,-2834.166,0.00010073,2]
[420962539,1776811832766,-184.4,0.00010073,2]
[420962540,1776811832774,-150.0,0.00010082,2]
[420962541,1776811832784,-174.898464,0.00010082,2]
[420962542,1776811832793,-350.0,0.00010087,2]
[420962543,1776811832802,-25864.88829314,0.0001009,2]
[420962544,1776811832814,-3504.83327399,0.0001009,2]
[420962545,1776811832825,-10812.65802735,0.0001009,2]
[420962546,1776811832837,-760.36475751,0.0001009,2]
[420962547,1776811832876,-4366.79847194,0.0001009,2]
[420962548,1776811832887,-970.44892758,0.0001009,2]
[420962549,1776811832899,-679.07447758,0.0001009,2]
[420962552,1776811838464,-500.0,9.942e-05,2]
[420962553,1776811838474,-195.9,9.942e-05,2]
[420962554,1776811838514,-304.1,9.942e-05,2]
[420962555,1776811838523,-500.0,9.942e-05,2]
[420962556,1776811838532,-500.0,9.942e-05,2]
[420962557,1776811838542,-228.59415397,9.942e-05,2]
[420962558,1776811838552,-667.30584603,0.0001009,2]
[420962559,1776811838563,-1660.0,0.0001009,2]
[420962560,1776811838623,-325.05496984,0.0001009,2]
[420962561,1776811838632,-401.66400274,0.0001009,2]
[420962562,1776811838641,-4082.22751267,0.00010092,2]
[420962565,1776811840403,-570.07569435,0.00010092,2]
[420962566,1776811840456,-1476.0,0.00010092,2]
[420962567,1776811840561,-2078.89105707,0.00010092,2]
[420962586,1776811843244,-1698.40381241,0.00010092,2]
[420962587,1776811843253,-200.0,0.00010094,2]
[420962588,1776811843263,-200.0,0.00010094,2]
[420962589,1776811843273,-1428.38747117,0.00010094,2]
[420962590,1776811843282,-721.12765535,0.00010094,2]
[420962591,1776811843292,-743.50770149,0.00010094,2]
[420962592,1776811843302,-200.0,0.00010099,2]
[420962593,1776811843312,-980.49785981,0.00010147,2]
[420962594,1776811843404,-9291.60734552,0.00010147,2]
[420962595,1776811843414,-404.05849758,0.00010174,2]
[420962596,1776811843426,-18509.43626146,0.00010174,2]
[420962608,1776811847064,-4382.06468166,0.00010174,2]
[420962609,1776811847073,-902.7313546,0.00010174,2]
[420962610,1776811847082,-1051.7946911,0.00010174,2]
[420962611,1776811847092,-1343.038184,0.00010174,2]
[420962612,1776811847101,-161.0,0.0001018,2]
[420962613,1776811847110,-350.0732528,0.0001019,2]
[420962614,1776811847119,-151.0,0.0001019,2]
[420962615,1776811847128,-500.0,0.0001019,2]
[420962616,1776811847136,-168.41,0.00010192,2]
[420962617,1776811847146,-181.618816,0.00010197,2]
[420962618,1776811847155,-1641.52983777,0.00010198,2]
[420962619,1776811847164,-10652.17309792,0.00010202,2]
[420962620,1776811847174,-160.0,0.00010213,2]
[420962621,1776811847183,-163.380438,0.00010213,2]
[420962622,1776811847192,-166.760877,0.00010213,2]
[420962623,1776811847202,-389.0,0.00010222,5]
[420962624,1776811847211,-435.0,0.00010222,5]
[420962625,1776811847220,-160.497406,0.00010228,2]
[420962626,1776811847229,-377.0,0.00010253,2]
[420962627,1776811847239,-11046.30350255,0.00010257,2]
[420962628,1776811847248,-350.0,0.00010259,2]
[420962629,1776811847257,-816.847327,0.00010263,2]
[420962630,1776811847266,-816.847327,0.00010263,2]
[420962631,1776811847275,-816.847327,0.00010263,2]
[420962632,1776811847284,-816.847327,0.00010263,2]
[420962633,1776811847294,-250.0,0.00010274,2]
[420962634,1776811847303,-161.0,0.0001028,2]
[420962635,1776811847312,-1805.85195,0.00010286,2]
[420962636,1776811847322,-2000.0,0.00010289,2]
[420962637,1776811847331,-5530.0,0.000103,3]
[420962638,1776811847340,-444.0,0.00010303,2]
[420962639,1776811847349,-11455.01673214,0.00010312,2]
[420962640,1776811847358,-250.0,0.00010317,2]
[420962641,1776811847367,-203.18725147,0.00010359,2]
[420962642,1776811847376,-374.0,0.00010367,5]
[420962643,1776811847385,-11878.85235123,0.00010367,2]
[420962644,1776811847394,-250.0,0.00010378,2]
[420962645,1776811847403,-250.0,0.00010378,2]
[420962646,1776811847412,-250.0,0.00010378,2]
[420962647,1776811847421,-1117.0,0.00010402,2]
[420962648,1776811847431,-8940.50688586,0.00010422,2]
[420962649,1776811847470,-3377.86300237,0.00010422,2]
[420962650,1776811847480,-350.0,0.00010433,2]
[420962651,1776811847489,-49.48699763,0.00010436,2]
[420962652,1776811847568,-545.50266939,9.942e-05,2]
[420962653,1776811847577,-500.0,9.942e-05,2]
[420962654,1776811847586,-382.5881899,9.942e-05,2]
[420962655,1776811847595,-767.36032937,0.00010436,2]
[420962656,1776811847604,-816.847327,0.00010436,2]
[420962657,1776811847613,-816.847327,0.00010436,2]
[420962658,1776811847622,-816.847327,0.00010436,2]
[420962659,1776811847631,-1906.60683021,0.00010436,2]
[420962660,1776811847642,-1623.39316979,0.00010436,2]
[420962661,1776811847651,-1048.0,0.00010436,2]
[420962662,1776811847660,-1265.0,0.00010436,2]
[420962663,1776811847669,-416.0,0.00010436,2]
[420962664,1776811847679,-3780.0,0.00010436,2]
[420962665,1776811847688,-346.9631567,0.00010436,2]
[420962666,1776811847699,-845.000003,0.00010436,2]
[420962667,1776811907421,-1506.92860661,0.0001672,120]
[420963701,1776813033333,-500.0,8.383e-05,2]
[420963702,1776813033343,-77.95859147,8.389e-05,2]
[420963703,1776813033354,-72.04140853,8.389e-05,2]
[420963704,1776813033366,-1405.16,8.41e-05,2]
[420963705,1776813033376,-150.0,8.852e-05,2]
[420963706,1776813033385,-150.0,8.852e-05,2]
[420963707,1776813033395,-150.0,8.863e-05,2]
[420963708,1776813033404,-150.0,8.874e-05,2]
[420963709,1776813033414,-150.0,8.885e-05,2]
[420963710,1776813033423,-150.0,8.896e-05,2]
[420963711,1776813033433,-150.0,8.907e-05,2]
[420963712,1776813033442,-320.0,8.917e-05,2]
[420963713,1776813033452,-150.0,8.918e-05,2]
[420963714,1776813033461,-150.0,8.929e-05,2]
[420963715,1776813033471,-150.0,8.939e-05,2]
[420963716,1776813033480,-150.0,8.95e-05,2]
[420963717,1776813033489,-150.0,8.961e-05,2]
[420963718,1776813033498,-150.0,8.972e-05,2]
[420963719,1776813033507,-150.0,8.983e-05,2]
[420963720,1776813033517,-150.0,8.994e-05,2]
[420963721,1776813033526,-150.0,9.005e-05,2]
[420963722,1776813033536,-150.0,9.016e-05,2]
[420963723,1776813033544,-150.0,9.027e-05,2]
[420963724,1776813033553,-150.0,9.038e-05,2]
[420963725,1776813033563,-150.0,9.049e-05,2]
[420963726,1776813033572,-150.0,9.06e-05,2]
[420963727,1776813033581,-150.0,9.071e-05,2]
[420963728,1776813033590,-300.0,9.071e-05,2]
[420963729,1776813033599,-40.81675226,9.071e-05,2]
[420963730,1776813033611,-1159.18324774,9.071e-05,2]
[420963731,1776813033620,-150.0,9.082e-05,2]